bitfinex-derivatives/quotes_SOLF0:USTF0_20251208
["timestamp","ask_amount","ask_price","bid_price","bid_amount"]
[1765222506197,3.17306339,134.38,134.35,3.36543074]
[1765222506402,3.17306339,134.38,134.35,0.05543074]
[1765222506800,8.75259811,134.37,134.35,0.05543074]
[1765222507000,3.12,134.36,134.35,0.05543074]
[1765222507904,3.17306339,134.38,134.35,3.36543074]
[1765222508106,0.05306339,134.38,134.35,3.36543074]
[1765222510200,3.17306339,134.38,134.35,0.05543074]
[1765222510400,3.12,134.36,134.35,0.05543074]
[1765222510995,8.75790271,134.36,134.35,0.05543074]
[1765222511404,3.12,134.36,134.35,0.05543074]
[1765222511796,3.12,134.35,134.29,6.7011]
[1765222511993,3.12,134.33,134.29,6.7011]
[1765222512392,3.12,134.33,134.26,170.833]
[1765222512793,3.17411544,134.31,134.28,0.05530202]
[1765222514596,3.12,134.3,134.28,0.05530202]
[1765222515500,0.05411544,134.31,134.28,3.36530202]
[1765222515705,3.12,134.36,134.3,3.31]
[1765222515908,3.12,134.39,134.31,3.31]
[1765222516104,5.62197831,134.38,134.31,3.31]
[1765222516506,3.12,134.39,134.31,3.31]
[1765222516702,0.0569056,134.36,134.34,0.05559627]
[1765222516907,3.1769056,134.36,134.34,0.05559627]
[1765222517713,0.0569056,134.36,134.34,6.75429627]
[1765222519901,0.0569056,134.36,134.35,3.11]
[1765222522102,0.0569056,134.36,134.34,6.75429627]
[1765222522505,0.0569056,134.36,134.34,9.86429627]
[1765222524115,0.0569056,134.36,134.35,3.11]
[1765222525403,0.0569056,134.36,134.34,6.75429627]
[1765222525614,0.0569056,134.36,134.34,9.86429627]
[1765222525812,0.0569056,134.36,134.34,6.75429627]
[1765222526209,0.0569056,134.36,134.34,9.86429627]
[1765222528410,44.0,134.4,134.37,9.8071]
[1765222528617,3.28,134.41,134.37,9.8071]
[1765222529619,0.05575077,134.4,134.38,0.04849183]
[1765222530521,3.33575077,134.4,134.38,0.04849183]
[1765222531617,0.05575077,134.4,134.38,9.85519183]
[1765222531821,0.05575077,134.4,134.39,3.11]
[1765222533317,0.05575077,134.4,134.38,0.04849183]
[1765222533623,3.33575077,134.4,134.38,0.04849183]
[1765222533819,3.28,134.39,134.33,3.11]
[1765222534121,3.28,134.39,134.31,66.39]
[1765222534521,3.28,134.36,134.32,6.6994]
[1765222534716,3.28,134.36,134.31,66.39]
[1765222535022,3.28,134.36,134.32,0.04939158]
[1765222535023,0.05179891,134.35,134.32,0.04939158]
[1765222535224,0.05179891,134.35,134.32,3.15939158]
[1765222535517,3.33179891,134.35,134.32,0.04939158]
[1765222535917,0.05179891,134.35,134.32,3.15939158]
[1765222537525,0.05179891,134.35,134.32,9.85899158]
[1765222538331,0.05179891,134.35,134.33,6.6992]
[1765222538521,0.05179891,134.35,134.33,9.8092]
[1765222538921,0.05179891,134.35,134.34,3.11]
[1765222550427,8.89607661,134.35,134.32,0.04939158]
[1765222550632,8.8444018,134.34,134.32,0.04939158]
[1765222550835,3.2,134.34,134.32,0.04939158]
[1765222552235,0.05179891,134.35,134.33,3.19]
[1765222552844,0.05179891,134.35,134.33,9.8892]
[1765222553029,0.05179891,134.35,134.34,3.19]
[1765222553235,8.39552584,134.4,134.34,3.19]
[1765222553236,5.64744195,134.39,134.34,3.19]
[1765222553436,3.2,134.4,134.34,3.19]
[1765222553736,5.64758759,134.39,134.34,3.19]
[1765222553934,5.64758759,134.38,134.34,3.19]
[1765222554137,5.19541546,134.41,134.37,3.19]
[1765222554439,5.69735319,134.4,134.37,3.19]
[1765222554641,0.04947665,134.4,134.37,3.23705988]
[1765222555530,0.04947665,134.4,134.38,9.8867]
[1765222556442,0.04947665,134.4,134.39,3.19]
[1765222557032,0.04947665,134.4,134.38,3.19]
[1765222560046,0.04947665,134.4,134.37,3.08705988]
[1765222560236,3.27947665,134.4,134.37,3.08705988]
[1765222560934,5.65292027,134.39,134.37,0.04705988]
[1765222561139,3.27947665,134.4,134.37,0.04705988]
[1765222561356,5.65353625,134.39,134.37,0.04705988]
[1765222561645,3.27947665,134.4,134.37,0.04705988]
[1765222561848,5.65304148,134.39,134.37,0.04705988]
[1765222562149,3.27947665,134.4,134.37,0.04705988]
[1765222562447,5.65257079,134.39,134.37,0.04705988]
[1765222562646,0.04947665,134.4,134.37,3.08705988]
[1765222562851,0.04947665,134.4,134.38,3.04]
[1765222563444,0.04947665,134.4,134.38,9.7367]
[1765222563641,0.04947665,134.4,134.39,3.04]
[1765222564143,0.04947665,134.4,134.37,0.04705988]
[1765222564144,3.27947665,134.4,134.37,3.08705988]
[1765222564944,5.6511247,134.39,134.37,0.04705988]
[1765222565144,9.97537665,134.4,134.37,0.04705988]
[1765222565358,8.88045421,134.39,134.37,0.04705988]
[1765222565539,3.23,134.38,134.37,0.04705988]
[1765222565739,8.88027581,134.38,134.37,0.04705988]
[1765222567542,3.23,134.37,134.31,3.04]
[1765222567851,8.88027581,134.36,134.31,3.04]
[1765222568065,5.65027581,134.35,134.31,3.04]
[1765222568350,3.23,134.36,134.31,3.04]
[1765222568552,3.23,134.36,134.32,9.78734769]
[1765222568553,5.69829929,134.35,134.32,9.78734769]
[1765222568754,0.0504673,134.35,134.32,9.78734769]
[1765222570146,3.2804673,134.35,134.32,9.78734769]
[1765222570957,3.2804673,134.35,134.32,0.04754769]
[1765222572546,3.23,134.33,134.32,0.04754769]
[1765222573351,2.48267576,134.34,134.32,0.04754769]
[1765222573553,0.0504673,134.35,134.32,3.08754769]
[1765222574053,0.0504673,134.35,134.32,9.78734769]
[1765222574455,0.0504673,134.35,134.33,3.04]
[1765222575151,3.2804673,134.35,134.32,9.78734769]
[1765222575345,3.2804673,134.35,134.32,0.04754769]
[1765222575551,8.87415885,134.34,134.32,0.04754769]
[1765222575752,3.23,134.34,134.32,0.04754769]
[1765222578560,5.64671466,134.33,134.32,0.04754769]
[1765222578755,5.64671466,134.33,134.27,9.18457576]
[1765222578756,11.31939042,134.33,134.27,9.18457576]
[1765222579063,3.19,134.31,134.28,3.07]
[1765222579267,5.67267576,134.33,134.28,3.07]
[1765222579453,8.83477704,134.32,134.28,3.07]
[1765222579657,3.19,134.32,134.28,9.7718]
[1765222579865,0.05390833,134.31,134.29,3.12411421]
[1765222581256,0.05390833,134.31,134.29,9.82541421]
[1765222583057,3.24390833,134.31,134.29,0.05411421]
[1765222583461,3.19,134.3,134.29,0.05411421]
[1765222583668,3.19,134.3,134.26,66.35]
[1765222584264,3.19,134.28,134.24,9.7735]
[1765222584555,3.23881241,134.27,134.25,0.05262163]
[1765222585462,3.19,134.26,134.25,0.05262163]
[1765222585956,0.04881241,134.27,134.25,3.12262163]
[1765222586359,3.23881241,134.27,134.25,0.05262163]
[1765222591467,3.19,134.26,134.25,0.05262163]
[1765222593468,3.19,134.26,134.19,5.55267576]
[1765222593660,5.67267576,134.22,134.16,3.07]
[1765222594059,3.19,134.21,134.17,3.07]
[1765222594365,3.19,134.21,134.16,3.07]
[1765222594565,0.05592792,134.2,134.17,3.11758267]
[1765222595269,0.05592792,134.2,134.18,6.7067]
[1765222595771,0.05592792,134.2,134.17,3.11758267]
[1765222595772,3.24592792,134.2,134.17,3.11758267]
[1765222596557,0.05592792,134.2,134.17,3.11758267]
[1765222596758,0.05592792,134.2,134.19,3.07]
[1765222596964,2.48267576,134.25,134.19,3.07]
[1765222597261,5.67267576,134.25,134.21,3.07]
[1765222597458,3.19,134.25,134.21,3.07]
[1765222598060,0.05324653,134.24,134.22,3.12119469]
[1765222599573,0.05324653,134.24,134.23,6.7041]
[1765222600865,3.24324653,134.24,134.22,0.05119469]
[1765222602964,0.05324653,134.24,134.22,9.82589469]
[1765222603173,0.05324653,134.24,134.23,3.07]
[1765222604570,0.05324653,134.24,134.22,9.82589469]
[1765222606476,0.05324653,134.24,134.23,3.07]
[1765222609676,47.21,134.32,134.24,3.27]
[1765222609881,8.81680757,134.31,134.26,3.27]
[1765222610084,8.81680757,134.31,134.25,3.88408793]
[1765222610085,44.0,134.32,134.29,3.27]
[1765222610282,3.21,134.34,134.29,3.27]
[1765222610484,8.82055541,134.33,134.29,3.27]
[1765222610774,0.05736435,134.32,134.3,0.04895365]
[1765222610975,3.26736435,134.32,134.3,0.04895365]
[1765222611985,0.05736435,134.32,134.3,3.31895365]
[1765222612586,0.05736435,134.32,134.3,10.01965365]
[1765222612786,0.05736435,134.32,134.31,3.27]
[1765222613693,0.05736435,134.32,134.3,3.31895365]
[1765222615193,0.05736435,134.32,134.3,10.01965365]
[1765222615384,0.05736435,134.32,134.31,3.27]
[1765222616704,0.05736435,134.32,134.3,3.31895365]
[1765222617894,0.05736435,134.32,134.31,3.27]
[1765222620402,164.02508066,134.39,134.34,3.27]
[1765222620403,44.0,134.39,134.34,3.27]
[1765222621109,44.0,134.39,134.36,3.27]
[1765222621416,0.04974169,134.39,134.38,3.27]
[1765222621606,0.04974169,134.39,134.38,9.9665]
[1765222622504,66.53,134.46,134.4,3.27]
[1765222622809,5.61728256,134.45,134.4,3.27]
[1765222622994,3.18,134.47,134.4,3.27]
[1765222623196,8.79725939,134.46,134.4,3.27]
[1765222623396,3.21750661,134.44,134.42,0.05686669]
[1765222623602,0.03750661,134.44,134.42,3.24686669]
[1765222626000,0.03750661,134.44,134.43,3.19]
[1765222626607,3.18,134.49,134.44,3.19]
[1765222627603,3.18,134.49,134.45,3.2391104]
[1765222628804,3.18,134.49,134.45,9.9323104]
[1765222630008,3.18,134.48,134.45,0.0491104]
[1765222631909,3.18,134.48,134.45,3.2391104]
[1765222633517,104.0368,134.56,134.46,3.19]
[1765222633703,3.18,134.54,134.5,0.05435422]
[1765222634006,3.18,134.53,134.5,0.05435422]
[1765222635115,12.25225077,134.56,134.5,3.24435422]
[1765222635411,3.18,134.55,134.5,3.24435422]
[1765222635817,9.8685,134.55,134.5,9.93495422]
[1765222636209,3.18,134.55,134.51,3.19]
[1765222637311,3.18,134.53,134.5,0.05435422]
[1765222638614,3.03,134.51,134.5,0.05435422]
[1765222640016,3.03,134.51,134.45,10.043]
[1765222640017,3.03,134.5,134.45,10.043]
[1765222640224,3.03,134.5,134.43,63.24]
[1765222640621,3.03,134.46,134.39,3.35]
[1765222640825,3.03,134.45,134.36,3.35]
[1765222641019,0.0521444,134.42,134.39,3.40328966]
[1765222641517,0.0521444,134.42,134.4,3.35]
[1765222642224,0.0521444,134.42,134.41,3.35]
[1765222648523,9.722,134.48,134.42,6.6947]
[1765222648819,3.03,134.47,134.43,3.35]
[1765222649422,3.03,134.47,134.44,3.35]
[1765222649716,9.7212,134.5,134.44,3.35]
[1765222649918,5.5703366,134.49,134.46,3.4033604]
[1765222650118,3.03,134.52,134.46,107.5082604]
[1765222650325,3.03,134.54,134.47,3.35]
[1765222650629,3.03,134.52,134.49,0.05107548]
[1765222650827,8.60453345,134.51,134.49,0.05107548]
[1765222651030,3.03,134.51,134.49,0.05107548]
[1765222652233,5.58330113,134.5,134.49,0.05107548]
[1765222652935,8.61330113,134.5,134.49,0.05107548]
[1765222654931,8.61330113,134.5,134.38,104.1696]
[1765222654932,3.03,134.48,134.42,3.35]
[1765222655235,8.61330113,134.47,134.42,3.35]
[1765222655429,3.03,134.47,134.42,3.35]
[1765222656038,3.07722481,134.46,134.43,0.05546008]
[1765222657237,8.63683991,134.45,134.43,0.05546008]
[1765222657439,3.03,134.45,134.43,0.05546008]
[1765222657737,3.07722481,134.46,134.43,3.40546008]
[1765222657941,5.60962052,134.45,134.43,3.40546008]
[1765222658234,0.04722481,134.46,134.43,3.40546008]
[1765222658430,5.61275155,134.45,134.44,10.0438]
[1765222658628,0.04722481,134.46,134.44,10.0438]
[1765222659833,0.04722481,134.46,134.45,3.35]
[1765222660035,5.66500917,134.46,134.45,3.35]
[1765222660430,0.04722481,134.46,134.45,3.35]
[1765222660938,0.04722481,134.46,134.44,6.6938]
[1765222661237,0.04722481,134.46,134.45,3.35]
[1765222661438,5.67337418,134.46,134.45,3.35]
[1765222661735,8.70337418,134.46,134.43,0.05546008]
[1765222661927,5.62614937,134.45,134.43,0.05546008]
[1765222662127,3.07722481,134.46,134.43,0.05546008]
[1765222662328,5.6312675,134.45,134.43,0.05546008]
[1765222662528,3.07722481,134.46,134.43,3.40546008]
[1765222662730,0.04722481,134.46,134.45,3.35]
[1765222662928,5.67916863,134.46,134.45,3.35]
[1765222665739,6.79046068,134.51,134.47,3.35]
[1765222666037,6.79046068,134.51,134.48,3.35]
[1765222666435,6.79046068,134.51,134.48,10.0418]
[1765222666638,3.03,134.5,134.48,0.05405492]
[1765222666935,3.03,134.49,134.48,0.05405492]
[1765222669034,3.16,134.5,134.48,0.05405492]
[1765222674043,3.16,134.51,134.48,6.74585492]
[1765222674642,3.16,134.51,134.48,0.05405492]
[1765222677052,3.16,134.51,134.48,6.74585492]
[1765222677537,5.62886124,134.5,134.48,6.74585492]
[1765222677743,3.16,134.5,134.48,6.74585492]
[1765222679031,3.16,134.5,134.49,6.6914]
[1765222679239,3.16,134.53,134.49,9.7314]
[1765222679433,8.78915049,134.52,134.49,9.7314]
[1765222679637,5.62915049,134.51,134.5,9.7309]
[1765222679841,15.13731445,134.55,134.51,3.04]
[1765222680042,5.62952877,134.54,134.52,0.0492958]
[1765222680238,5.62952877,134.53,134.52,9.7788958]
[1765222680547,13.83580088,134.57,134.53,3.04]
[1765222680748,8.78988796,134.56,134.53,3.04]
[1765222680947,8.78988796,134.55,134.52,0.0492958]
[1765222681247,5.62988796,134.54,134.52,3.0892958]
[1765222681441,3.16,134.55,134.52,9.7789958]
[1765222681642,5.63073102,134.54,134.52,9.7789958]
[1765222681942,3.16,134.55,134.52,9.7789958]
[1765222682141,5.63081549,134.54,134.52,9.7789958]
[1765222682341,3.16,134.55,134.52,9.7789958]
[1765222682534,8.79026056,134.54,134.52,0.0492958]
[1765222682740,3.16,134.53,134.52,0.0492958]
[1765222682935,3.16,134.52,134.46,3.04]
[1765222683241,6.79046068,134.55,134.46,3.04]
[1765222683242,3.16,134.5,134.46,3.04]
[1765222683436,3.16,134.5,134.45,63.22]
[1765222683645,3.16,134.48,134.45,63.22]
[1765222684042,3.21535629,134.48,134.45,69.96949811]
[1765222684248,3.21535629,134.48,134.45,63.27629811]
[1765222684848,0.05535629,134.48,134.46,3.04]
[1765222685346,0.05535629,134.48,134.45,66.31629811]
[1765222685935,3.21535629,134.48,134.45,63.27629811]
[1765222686547,5.63180154,134.47,134.45,0.05629811]
[1765222686743,3.37535629,134.48,134.45,0.05629811]
[1765222687048,8.95180356,134.47,134.45,0.05629811]
[1765222687244,3.32,134.47,134.45,0.05629811]
[1765222688453,5.79700191,134.47,134.45,0.05629811]
[1765222688643,8.95681756,134.46,134.45,0.05629811]
[1765222689655,0.05535629,134.48,134.45,3.21629811]
[1765222689951,5.63759269,134.47,134.45,3.21629811]
[1765222690156,3.37535629,134.48,134.45,3.21629811]
[1765222690343,5.63843177,134.47,134.45,3.21629811]
[1765222690544,3.37535629,134.48,134.45,3.21629811]
[1765222690754,8.95902549,134.47,134.45,0.05629811]
[1765222690955,5.63902549,134.46,134.45,0.05629811]
[1765222691358,3.32,134.47,134.45,0.05629811]
[1765222691556,5.63915962,134.46,134.45,0.05629811]
[1765222692148,3.32,134.47,134.45,0.05629811]
[1765222692351,5.63981523,134.46,134.45,0.05629811]
[1765222693761,3.32,134.45,134.42,63.22]
[1765222693947,3.32,134.43,134.39,5.63700191]
[1765222694152,3.32,134.43,134.39,3.16]
[1765222694447,3.32,134.43,134.39,6.696]
[1765222694656,3.32,134.43,134.4,0.05025727]
[1765222694959,3.37501973,134.42,134.4,0.05025727]
[1765222695745,2.47700191,134.41,134.4,0.05025727]
[1765222695951,3.32,134.4,134.37,63.22]
[1765222696344,3.32,134.4,134.37,66.38]
[1765222696761,3.37501973,134.42,134.38,3.16]
[1765222696945,5.6320471,134.41,134.39,0.05310796]
[1765222697146,3.37501973,134.42,134.39,3.21310796]
[1765222697354,5.63301828,134.41,134.39,3.21310796]
[1765222697659,3.37501973,134.42,134.39,3.21310796]
[1765222697953,5.63046923,134.41,134.39,3.21310796]
[1765222698158,3.37501973,134.42,134.39,3.21310796]
[1765222699158,3.37501973,134.42,134.39,9.90940796]
[1765222700456,3.37501973,134.42,134.39,6.74940796]
[1765222700657,3.12,134.4,134.39,0.05310796]
[1765222706960,3.12,134.38,134.34,10.0087]
[1765222707562,3.12,134.38,134.35,3.31]
[1765222707963,3.17413095,134.38,134.35,3.36458679]
[1765222711067,0.05413095,134.38,134.37,3.31]
[1765222713263,12.29955191,134.46,134.4,3.31]
[1765222713264,3.12,134.45,134.4,3.31]
[1765222713464,3.12,134.48,134.41,3.31]
[1765222713668,5.60990842,134.47,134.41,3.31]
[1765222713866,3.12,134.48,134.41,3.31]
[1765222714065,5.61028245,134.47,134.41,3.31]
[1765222714279,0.05131932,134.46,134.44,3.31]
[1765222714975,0.05131932,134.46,134.44,10.0038]
[1765222715879,0.05131932,134.46,134.43,0.0507187]
[1765222715880,3.17131932,134.46,134.43,0.0507187]
[1765222716784,3.17131932,134.46,134.43,3.3607187]
[1765222717086,0.05131932,134.46,134.43,3.3607187]
[1765222718476,3.17131932,134.46,134.43,3.3607187]
[1765222719276,3.17131932,134.46,134.43,0.0507187]
[1765222719988,9.86421932,134.46,134.43,0.0507187]
[1765222720177,3.12,134.45,134.43,0.0507187]
[1765222721085,3.12,134.44,134.43,0.0507187]
[1765222727785,3.12,134.45,134.43,0.0507187]
[1765222728380,3.30131932,134.46,134.43,3.2407187]
[1765222728586,0.05131932,134.46,134.43,3.2407187]
[1765222728784,3.30131932,134.46,134.43,3.2407187]
[1765222728983,0.05131932,134.46,134.44,6.6937]
[1765222729185,0.05131932,134.46,134.44,9.8837]
[1765222730090,3.30131932,134.46,134.44,6.6937]
[1765222730296,0.05131932,134.46,134.44,9.8837]
[1765222731592,3.30131932,134.46,134.44,6.6937]
[1765222732590,0.05131932,134.46,134.44,9.8837]
[1765222732790,0.05131932,134.46,134.45,3.19]
[1765222733197,5.63011037,134.49,134.46,3.19]
[1765222733398,5.63011037,134.48,134.46,3.19]
[1765222733596,3.25,134.5,134.46,3.19]
[1765222733798,5.6299939,134.49,134.47,9.8824]
[1765222733994,3.25,134.5,134.47,9.8824]
[1765222734192,3.29838543,134.5,134.47,9.93669968]
[1765222736297,3.29838543,134.5,134.47,0.05429968]
[1765222737088,3.25,134.48,134.47,0.05429968]
[1765222737688,3.25,134.48,134.43,66.43]
[1765222737891,3.25,134.48,134.43,63.24]
[1765222738192,3.25,134.46,134.4,3.19]
[1765222738795,3.87194204,134.47,134.4,3.19]
[1765222738796,3.29851375,134.44,134.42,0.05271227]
[1765222741105,0.04851375,134.44,134.42,3.24271227]
[1765222741699,0.04851375,134.44,134.43,3.19]
[1765222742101,44.0,134.5,134.43,3.19]
[1765222742291,8.89694056,134.49,134.46,3.19]
[1765222742495,5.64694056,134.48,134.46,3.19]
[1765222742692,3.25,134.49,134.46,3.19]
[1765222742896,5.64839464,134.48,134.46,3.19]
[1765222743206,0.05574703,134.48,134.46,0.05357694]
[1765222743406,3.30574703,134.48,134.46,0.05357694]
[1765222746102,0.05574703,134.48,134.46,3.24357694]
[1765222746305,5.64782012,134.51,134.46,3.24357694]
[1765222746506,47.25,134.54,134.48,9.8817]
[1765222746704,5.64916604,134.53,134.49,3.19]
[1765222746902,5.64916604,134.52,134.49,3.19]
[1765222747109,16.72926068,134.55,134.49,3.19]
[1765222747305,0.05355074,134.53,134.51,0.05465238]
[1765222747505,5.64795449,134.52,134.51,0.05465238]
[1765222747808,8.89795449,134.52,134.51,0.05465238]
[1765222750908,5.64795449,134.52,134.45,3.17]
[1765222751114,5.64795449,134.51,134.45,3.17]
[1765222751414,9.8998,134.53,134.45,3.17]
[1765222751707,5.64968076,134.52,134.45,3.17]
[1765222751905,0.05698864,134.5,134.48,3.17]
[1765222752910,0.05698864,134.5,134.47,0.05358876]
[1765222753111,0.05698864,134.5,134.49,3.17]
[1765222753310,0.05698864,134.5,134.48,9.8618]
[1765222755112,3.26698864,134.5,134.47,0.05358876]
[1765222755311,3.26698864,134.5,134.47,3.22358876]
[1765222756920,0.05698864,134.5,134.48,3.17]
[1765222757521,0.05698864,134.5,134.48,9.8618]
[1765222757719,0.05698864,134.5,134.49,3.17]
[1765222759925,3.12698864,134.5,134.47,0.05358876]
[1765222760429,3.07,134.48,134.42,3.15]
[1765222760624,3.07,134.46,134.39,3.15]
[1765222760822,8.71234743,134.45,134.39,3.15]
[1765222761020,8.71234743,134.44,134.4,9.8458]
[1765222761324,3.07,134.44,134.4,3.15]
[1765222761524,0.04996223,134.43,134.41,0.04705318]
[1765222763325,0.04996223,134.43,134.41,3.19705318]
[1765222764429,0.04996223,134.43,134.41,0.04705318]
[1765222764622,0.04996223,134.43,134.41,3.19705318]
[1765222764821,0.04996223,134.43,134.42,3.15]
[1765222765024,3.07,134.49,134.42,3.15]
[1765222765331,5.64048174,134.48,134.42,3.15]
[1765222765515,8.71048174,134.47,134.44,6.6937]
[1765222765714,3.07,134.47,134.42,3.15]
[1765222765919,8.71018818,134.46,134.42,3.15]
[1765222766125,0.04953559,134.45,134.43,6.74738484]
[1765222766324,0.04953559,134.45,134.44,3.15]
[1765222767527,0.04953559,134.45,134.43,9.89738484]
[1765222767834,3.11953559,134.45,134.43,0.05308484]
[1765222768331,0.04953559,134.45,134.43,3.20308484]
[1765222768735,0.04953559,134.45,134.43,0.05308484]
[1765222769518,0.04953559,134.45,134.43,6.74728484]
[1765222770525,0.04953559,134.45,134.43,9.89728484]
[1765222770832,0.04953559,134.45,134.43,6.74728484]
[1765222771033,3.11953559,134.45,134.43,0.05308484]
[1765222771728,8.71177631,134.44,134.38,63.24]
[1765222771935,3.07,134.42,134.38,66.39]
[1765222772433,3.07,134.42,134.39,6.6962]
[1765222772734,3.12216145,134.42,134.39,6.74528706]
[1765222775038,3.12216145,134.42,134.39,0.04908706]
[1765222776440,3.07,134.4,134.39,0.04908706]
[1765222776734,8.70419491,134.4,134.39,0.04908706]
[1765222777237,3.07,134.4,134.39,0.04908706]
[1765222777832,3.07,134.4,134.35,3.15]
[1765222778132,3.07,134.38,134.34,66.39]
[1765222778335,3.07,134.38,134.34,73.0887]
[1765222778830,0.05643022,134.37,134.34,73.0887]
[1765222779031,0.05643022,134.37,134.35,9.90526195]
[1765222779635,0.05643022,134.37,134.35,0.05696195]
[1765222779937,3.12643022,134.37,134.35,0.05696195]
[1765222780138,0.05643022,134.37,134.35,0.05696195]
[1765222780533,0.05643022,134.37,134.35,9.90516195]
[1765222782140,0.05643022,134.37,134.36,3.15]
[1765222783340,3.12643022,134.37,134.35,0.05696195]
[1765222784346,9.82413022,134.37,134.35,0.05696195]
[1765222784548,3.07,134.36,134.35,0.05696195]
[1765222786942,0.05643022,134.37,134.35,3.20696195]
[1765222787752,3.12643022,134.37,134.35,6.75526195]
[1765222788146,3.12643022,134.37,134.35,0.05696195]
[1765222788338,3.05,134.36,134.35,0.05696195]
[1765222790641,3.05,134.36,134.31,3.29]
[1765222790845,3.05,134.34,134.29,63.26]
[1765222791249,3.05,134.32,134.29,63.26]
[1765222791843,3.10604154,134.32,134.29,63.30868656]
[1765222792561,3.10604154,134.32,134.29,0.04868656]
[1765222793456,3.05,134.29,134.25,3.29]
[1765222793656,3.05,134.29,134.24,66.57]
[1765222794352,5.59941317,134.33,134.27,3.29]
[1765222794560,0.05155138,134.31,134.29,3.34722492]
[1765222795456,0.05155138,134.31,134.29,10.04832492]
[1765222797655,0.05155138,134.31,134.3,3.29]
[1765222801161,63.28,134.37,134.3,3.29]
[1765222801354,3.06,134.38,134.31,66.56]
[1765222801549,3.06,134.38,134.31,3.26]
[1765222801752,9.7584,134.35,134.31,3.26]
[1765222801956,3.06,134.38,134.31,3.26]
[1765222802266,0.04757565,134.36,134.33,3.31025045]
[1765222803351,3.06,134.35,134.33,0.05025045]
[1765222804163,9.7585,134.35,134.33,0.05025045]
[1765222806167,3.06,134.34,134.33,0.05025045]
[1765222806374,3.06,134.35,134.33,0.05025045]
[1765222806667,0.04757565,134.36,134.33,3.31025045]
[1765222807869,0.04757565,134.36,134.35,3.26]
[1765222808261,3.10757565,134.36,134.33,0.05025045]
[1765222808666,3.06,134.34,134.33,0.05025045]
[1765222811065,0.04757565,134.36,134.33,3.31025045]
[1765222811962,3.10757565,134.36,134.33,3.31025045]
[1765222812160,5.62048009,134.35,134.33,3.31025045]
[1765222812364,3.10757565,134.36,134.33,0.05025045]
[1765222812564,5.62102214,134.35,134.33,0.05025045]
[1765222812761,3.10757565,134.36,134.33,0.05025045]
[1765222812961,5.62033714,134.35,134.33,0.05025045]
[1765222813164,3.10757565,134.36,134.33,0.05025045]
[1765222813370,5.62278433,134.35,134.33,0.05025045]
[1765222813570,3.10757565,134.36,134.33,0.05025045]
[1765222813770,5.62278433,134.35,134.33,0.05025045]
[1765222813971,3.10757565,134.36,134.33,0.05025045]
[1765222814171,5.62517411,134.35,134.33,0.05025045]
[1765222814378,3.10757565,134.36,134.33,0.05025045]
[1765222814676,5.62570502,134.35,134.33,0.05025045]
[1765222814876,3.10757565,134.36,134.33,0.05025045]
[1765222815069,5.62570502,134.35,134.33,0.05025045]
[1765222815272,3.10757565,134.36,134.33,0.05025045]
[1765222815475,3.06,134.34,134.33,0.05025045]
[1765222815678,8.68857784,134.34,134.33,0.05025045]
[1765222815886,3.06,134.33,134.27,66.56]
[1765222816178,3.06,134.33,134.28,3.26]
[1765222816973,3.11646488,134.32,134.29,0.05327429]
[1765222817180,3.10732143,134.32,134.29,3.31002919]
[1765222818789,0.04732143,134.32,134.29,3.31002919]
[1765222819077,0.04732143,134.32,134.3,3.24]
[1765222821079,0.04732143,134.32,134.3,9.9407]
[1765222822180,0.04732143,134.32,134.3,3.24]
[1765222823073,3.12732143,134.32,134.29,0.05002919]
[1765222823579,5.64675915,134.31,134.29,0.05002919]
[1765222823780,3.12732143,134.32,134.29,0.05002919]
[1765222823980,8.72675815,134.31,134.29,0.05002919]
[1765222824188,3.08,134.31,134.29,0.05002919]
[1765222824474,8.72749807,134.3,134.29,0.05002919]
[1765222824673,8.72749807,134.3,134.24,3.24]
[1765222824872,3.08,134.28,134.23,63.3]
[1765222825074,3.08,134.26,134.23,63.3]
[1765222825268,3.08,134.26,134.21,3.24]
[1765222825472,3.08,134.26,134.22,3.24]
[1765222825473,9.783,134.26,134.22,3.24]
[1765222825874,0.05610001,134.25,134.23,0.04975776]